[Event "EYCC Girls-U14 2019"]
[Site "Bratislava"]
[Date "2019.08.04"]
[Round "3.10"]
[White "Bondareva, Daria"]
[Black "Alekseenko, Mariya"]
[Result "1-0"]
[ECO "A43"]
[WhiteElo "1998"]
[BlackElo "1848"]
[Annotator "NA"]
[PlyCount "63"]
[EventDate "2019.08.02"]
[EventType "swiss"]
[EventCountry "SVK"]
[SourceTitle "playchess.com"]
[Source "ChessBase"]
[SourceQuality "1"]
[TimeControl "40/5400+30:1800+30"]

1. d4 {[%emt 0:00:00]} c5 {[%emt 0:00:00]} 2. dxc5 {[%emt 0:00:09]} e6 {[%emt 0:00:00]} 3. e4 {[%emt 0:00:25]} Bxc5 {[%emt 0:03:18]} 4. Bd3 {[%emt 0:00:15]} Nc6 {[%emt 0:00:46]} 5. Nf3 {[%emt 0:00:41]} Qc7 {[%emt 0:01:02]} 6. c3 {[%emt 0:04:45]} Nf6 {[%emt 0:00:13]} 7. Qe2 {[%emt 0:00:19]} a6 {[%emt 0:14:29]} 8. O-O {[%emt 0:04:00]} Be7 {[%emt 0:04:46]} 9. Nbd2 {[%emt 0:08:01]} d6 {[%emt 0:00:20]} 10. Nb3 {[%emt 0:01:08]} O-O {[%emt 0:05:17]} 11. Nbd4 {[%emt 0:05:45]} Ne5 12. Nxe5 {[%emt 0:04:13]} dxe5 {[%emt 0:08:00]} 13. Nb3 {[%emt 0:00:42]} Bd7 {[%emt 0:01:25]} 14. Be3 {[%emt 0:02:33]} Bc6 {[%emt 0:03:41]} 15. f3 {[%emt 0:01:19]} Rfd8 {[%emt 0:00:34]} 16. Rfd1 {[%emt 0:01:40]} b5 {[%emt 0:05:53]} 17. Qf2 {[%emt 0:01:57]} Nd7 {[%emt 0:00:58]} 18. Rac1 {[%emt 0:05:40]} a5 {[%emt 0:07:56]} 19. Na1 {[%emt 0:10:41]} Rac8 {[%emt 0:02:49]} 20. Kh1 {[%emt 0:05:22]} Qb8 {[%emt 0:08:02]} 21. Be2 {[%emt 0:04:56]} Qb7 {[%emt 0:08:38]} 22. Nb3 {[%emt 0:02:53]} Qa8 {[%emt 0:01:06]} 23. Nd2 {[%emt 0:01:55]} h6 {[%emt 0:02:50]} 24. c4 {[%emt 0:09:21]} Rb8 {[%emt 0:03:27]} 25. cxb5 {[%emt 0:00:56]} Bxb5 {[%emt 0:00:08]} 26. Bxb5 {[%emt 0:02:07]} Rxb5 {[%emt 0:00:06]} 27. Nc4 {[%emt 0:00:54]} Qb7 {[%emt 0:02:08]} 28. a4 {[%emt 0:01:30]} Rb4 {[%emt 0:06:10]} 29. Nxa5 {[%emt 0:00:54]} Qa8 {[%emt 0:00:30]} 30. Nc6 {[%emt 0:00:40]} Nf6 {[%emt 0:00:52]} 31. Nxe7+ {[%emt 0:00:23]} Kh7 {[%emt 0:00:07]} 32. Rxd8 {[%emt 0:00:14]} 1-0

[Event "EYCC Girls-U14 2019"]
[Site "Bratislava"]
[Date "2019.08.04"]
[Round "3.11"]
[White "Bashylina, Luisa"]
[Black "Kiousi, Panagiota"]
[Result "0-1"]
[ECO "B51"]
[WhiteElo "1989"]
[BlackElo "1895"]
[Annotator "NA"]
[PlyCount "94"]
[EventDate "2019.08.02"]
[EventType "swiss"]
[EventCountry "SVK"]
[SourceTitle "playchess.com"]
[Source "ChessBase"]
[SourceQuality "1"]
[TimeControl "40/5400+30:1800+30"]

1. e4 {[%emt 0:00:00]} c5 {[%emt 0:00:00]} 2. Nf3 {[%emt 0:00:00]} d6 {[%emt 0:00:00]} 3. Bb5+ {[%emt 0:00:00]} Nd7 {[%emt 0:00:00]} 4. O-O {[%emt 0:00:20]} a6 {[%emt 0:00:00]} 5. Bd3 {[%emt 0:00:06]} b5 {[%emt 0:00:30]} 6. c3 {[%emt 0:00:16]} c4 {[%emt 0:00:13]} 7. Bc2 {[%emt 0:00:09]} Ngf6 {[%emt 0:00:20]} 8. a4 {[%emt 0:08:02]} Bb7 {[%emt 0:00:20]} 9. Re1 {[%emt 0:01:25]} e6 {[%emt 0:04:43]} 10. d4 {[%emt 0:04:11]} cxd3 {[%emt 0:00:16]} 11. Bxd3 {[%emt 0:01:10]} bxa4 {[%emt 0:01:25]} 12. Qxa4 {[%emt 0:00:40]} Be7 {[%emt 0:00:56]} 13. Be3 {[%emt 0:05:33]} Ng4 {[%emt 0:05:21]} 14. Nbd2 {[%emt 0:13:18]} Nxe3 {[%emt 0:00:53]} 15. Rxe3 {[%emt 0:00:20]} O-O {[%emt 0:00:56]} 16. Nb3 {[%emt 0:05:32]} a5 {[%emt 0:07:13]} 17. Ree1 {[%emt 0:06:14]} Qc7 {[%emt 0:13:18]} 18. Bb5 {[%emt 0:10:25]} Nb6 {[%emt 0:06:11]} 19. Qd4 {[%emt 0:01:48]} Bf6 {[%emt 0:02:01]} 20. Qe3 {[%emt 0:03:58]} a4 {[%emt 0:02:03]} 21. Nbd4 {[%emt 0:00:46]} Rfc8 {[%emt 0:09:10]} 22. Nc2 {[%emt 0:05:47]} Nc4 {[%emt 0:09:09]} 23. Bxc4 {[%emt 0:03:14]} Qxc4 {[%emt 0:00:07]} 24. Nfd4 {[%emt 0:04:28]} Qc5 {[%emt 0:06:54]} 25. Na3 {[%emt 0:02:36]} Qb6 {[%emt 0:06:10]} 26. Ndb5 {[%emt 0:01:42]} Rc5 {[%emt 0:02:12]} 27. Qe2 {[%emt 0:03:30]} Re5 {[%emt 0:05:06]} 28. Qd3 {[%emt 0:04:14]} d5 {[%emt 0:00:48]} 29. Qc2 {[%emt 0:08:36]} Rxe4 {[%emt 0:02:49]} 30. Rxe4 {[%emt 0:00:28]} dxe4 {[%emt 0:00:06]} 31. Re1 {[%emt 0:02:03]} Qc5 {[%emt 0:03:01]} 32. Qd2 {[%emt 0:02:15]} Rd8 {[%emt 0:02:35]} 33. Qc2 {[%emt 0:01:27]} Bg5 {[%emt 0:03:21]} 34. Nd4 {[%emt 0:01:06]} e5 {[%emt 0:00:25]} 35. Ne2 {[%emt 0:00:33]} Qc6 {[%emt 0:02:41]} 36. Nb1 {[%emt 0:00:38]} Ba6 {[%emt 0:00:28]} 37. b4 {[%emt 0:00:58]} e3 {[%emt 0:03:58]} 38. f3 {[%emt 0:00:18]} Rd2 {[%emt 0:00:55]} 39. Nxd2 {[%emt 0:00:41]} exd2 {[%emt 0:00:05]} 40. Rd1 {[%emt 0:00:00]} Bxe2 {[%emt 0:00:00]} 41. Rxd2 {[%emt 0:07:22]} Bxd2 {[%emt 0:01:42]} 42. Qxd2 {[%emt 0:00:12]} Qb6+ {[%emt 0:00:11]} 43. Kh1 {[%emt 0:00:08]} Bb5 {[%emt 0:03:51]} 44. Qd5 {[%emt 0:02:53]} Qc6 {[%emt 0:01:14]} 45. Qxe5 {[%emt 0:01:13]} Qe8 {[%emt 0:00:09]} 46. Qg3 {[%emt 0:00:29]} a3 {[%emt 0:00:08]} 47. Qf2 {[%emt 0:03:21]} Qe2 0-1

[Event "EYCC Girls-U14 2019"]
[Site "Bratislava"]
[Date "2019.08.04"]
[Round "3.12"]
[White "Toth, Nikoletta"]
[Black "Batagan, Ilinca-Petra"]
[Result "1/2-1/2"]
[ECO "D00"]
[WhiteElo "2023"]
[BlackElo "1767"]
[Annotator "NA"]
[PlyCount "91"]
[EventDate "2019.08.02"]
[EventType "swiss"]
[EventCountry "SVK"]
[SourceTitle "playchess.com"]
[Source "ChessBase"]
[SourceQuality "1"]
[TimeControl "40/5400+30:1800+30"]

1. d4 {[%emt 0:00:00]} d5 {[%emt 0:00:00]} 2. Bf4 {[%emt 0:00:31]} Nf6 {[%emt 0:00:08]} 3. e3 {[%emt 0:00:08]} e6 {[%emt 0:00:09]} 4. Nf3 {[%emt 0:00:06]} Be7 {[%emt 0:00:31]} 5. Nbd2 {[%emt 0:01:28]} c5 {[%emt 0:02:49]} 6. c3 {[%emt 0:00:06]} Nc6 {[%emt 0:02:03]} 7. Ne5 {[%emt 0:03:50]} O-O {[%emt 0:02:37]} 8. Bd3 {[%emt 0:01:28]} Bd6 {[%emt 0:03:36]} 9. Bg3 {[%emt 0:08:07]} Bxe5 {[%emt 0:03:47]} 10. dxe5 {[%emt 0:03:15]} Nd7 {[%emt 0:00:21]} 11. O-O {[%emt 0:12:04]} g6 {[%emt 0:12:27]} 12. f4 {[%emt 0:04:00]} c4 {[%emt 0:00:29]} 13. Bc2 {[%emt 0:01:45]} Qb6 {[%emt 0:00:44]} 14. Rb1 {[%emt 0:04:41]} f6 {[%emt 0:02:12]} 15. Qe2 {[%emt 0:02:45]} Nc5 {[%emt 0:09:02]} 16. Nf3 {[%emt 0:08:43]} f5 {[%emt 0:03:21]} 17. Bh4 {[%emt 0:03:11]} Bd7 {[%emt 0:03:51]} 18. Nd4 {[%emt 0:08:17]} Nxd4 {[%emt 0:02:36]} 19. exd4 {[%emt 0:00:11]} Ne4 {[%emt 0:00:57]} 20. Bxe4 {[%emt 0:03:42]} dxe4 {[%emt 0:01:12]} 21. Be7 {[%emt 0:08:01]} Rf7 {[%emt 0:04:03]} 22. Bc5 {[%emt 0:01:21]} Qc6 {[%emt 0:03:21]} 23. Qe3 {[%emt 0:03:27]} Qa4 {[%emt 0:03:22]} 24. a3 {[%emt 0:08:00]} Qc2 {[%emt 0:02:16]} 25. Rfc1 {[%emt 0:06:31]} Qd3 {[%emt 0:04:27]} 26. Kf2 {[%emt 0:01:47]} Ba4 {[%emt 0:00:16]} 27. Qxd3 {[%emt 0:01:12]} cxd3 {[%emt 0:00:30]} 28. b3 {[%emt 0:00:18]} Bc6 {[%emt 0:00:44]} 29. Ke3 {[%emt 0:00:43]} g5 {[%emt 0:02:25]} 30. g3 {[%emt 0:00:04]} gxf4+ {[%emt 0:01:51]} 31. gxf4 {[%emt 0:00:45]} Rg7 {[%emt 0:00:24]} 32. Rg1 {[%emt 0:01:15]} Rxg1 {[%emt 0:00:29]} 33. Rxg1+ {[%emt 0:00:02]} Kf7 {[%emt 0:00:11]} 34. Rg3 {[%emt 0:01:53]} a6 {[%emt 0:00:33]} 35. Bb6 {[%emt 0:01:57]} Rg8 {[%emt 0:00:45]} 36. Rxg8 {[%emt 0:00:06]} Kxg8 {[%emt 0:00:01]} 37. c4 {[%emt 0:00:34]} Kf7 {[%emt 0:00:37]} 38. a4 {[%emt 0:00:42]} Kg6 {[%emt 0:00:29]} 39. h3 {[%emt 0:00:06]} Kh5 {[%emt 0:00:21]} 40. Bd8 {[%emt 0:00:00]} Kg6 {[%emt 0:00:00]} 41. a5 {[%emt 0:00:54]} Kf7 {[%emt 0:04:26]} 42. Bh4 {[%emt 0:02:48]} Ke8 {[%emt 0:00:34]} 43. Kd2 {[%emt 0:01:14]} Kd7 {[%emt 0:00:40]} 44. Ke3 {[%emt 0:00:50]} Ke8 {[%emt 0:00:19]} 45. Kd2 {[%emt 0:01:54]} Kd7 {[%emt 0:00:42]} 46. Ke3 {[%emt 0:00:43]} 1/2-1/2

[Event "EYCC Girls-U14 2019"]
[Site "Bratislava"]
[Date "2019.08.04"]
[Round "3.13"]
[White "Sumarriva Paulin, Laura"]
[Black "Sosovickova, Jana"]
[Result "1-0"]
[ECO "A40"]
[WhiteElo "1861"]
[BlackElo "1749"]
[Annotator "NA"]
[PlyCount "81"]
[EventDate "2019.08.02"]
[EventType "swiss"]
[EventCountry "SVK"]
[SourceTitle "playchess.com"]
[Source "ChessBase"]
[SourceQuality "1"]
[TimeControl "40/5400+30:1800+30"]

1. d4 {[%emt 0:00:00]} g6 {[%emt 0:00:00]} 2. c4 {[%emt 0:00:00]} Bg7 {[%emt 0:00:12]} 3. Nc3 {[%emt 0:00:11]} c5 {[%emt 0:01:03]} 4. d5 {[%emt 0:03:17]} Bxc3+ {[%emt 0:02:52]} 5. bxc3 {[%emt 0:00:14]} Qa5 {[%emt 0:01:31]} 6. Qc2 {[%emt 0:04:09]} f5 {[%emt 0:05:40]} 7. Nf3 {[%emt 0:16:26]} d6 {[%emt 0:06:51]} 8. h3 {[%emt 0:09:09]} Nf6 {[%emt 0:05:51]} 9. Bh6 {[%emt 0:01:28]} Ne4 {[%emt 0:08:22]} 10. Rc1 {[%emt 0:00:26]} Nd7 {[%emt 0:02:17]} 11. e3 {[%emt 0:01:26]} Nb6 {[%emt 0:05:09]} 12. Bd3 {[%emt 0:04:03]} Na4 {[%emt 0:07:13]} 13. Bxe4 {[%emt 0:01:22]} fxe4 {[%emt 0:00:37]} 14. Nd2 {[%emt 0:07:59]} Bd7 {[%emt 0:06:44]} 15. g4 {[%emt 0:12:39]} Rg8 {[%emt 0:20:46]} 16. Nxe4 {[%emt 0:02:17]} Nb6 {[%emt 0:01:48]} 17. Nd2 {[%emt 0:05:29]} Qa6 {[%emt 0:01:33]} 18. Qd3 {[%emt 0:15:43]} Qxa2 {[%emt 0:05:27]} 19. O-O {[%emt 0:01:03]} Qa5 {[%emt 0:02:26]} 20. f4 {[%emt 0:03:39]} Na4 {[%emt 0:04:38]} 21. e4 O-O-O {[%emt 0:01:51]} 22. f5 {[%emt 0:07:12]} Qc7 {[%emt 0:04:15]} 23. f6 {[%emt 0:01:20]} exf6 {[%emt 0:00:24]} 24. Rxf6 {[%emt 0:00:15]} Be8 {[%emt 0:01:32]} 25. Bf4 {[%emt 0:01:04]} Rg7 {[%emt 0:01:32]} 26. Qg3 {[%emt 0:00:23]} Rgd7 {[%emt 0:00:57]} 27. e5 {[%emt 0:00:20]} dxe5 {[%emt 0:00:32]} 28. Bxe5 {[%emt 0:00:06]} Rd6 {[%emt 0:00:59]} 29. Rxd6 {[%emt 0:00:52]} Rxd6 {[%emt 0:00:17]} 30. Bxd6 {[%emt 0:00:05]} Qa5 {[%emt 0:00:39]} 31. Qe5 {[%emt 0:01:13]} Qd8 {[%emt 0:00:44]} 32. Ne4 {[%emt 0:01:14]} Nb2 {[%emt 0:00:41]} 33. Qe6+ {[%emt 0:00:51]} Bd7 {[%emt 0:00:18]} 34. Qe7 {[%emt 0:00:14]} Qxe7 {[%emt 0:00:33]} 35. Bxe7 {[%emt 0:00:02]} b6 {[%emt 0:00:17]} 36. Nd6+ {[%emt 0:00:45]} Kb8 {[%emt 0:00:28]} 37. Bf6 {[%emt 0:00:54]} Nd3 {[%emt 0:00:43]} 38. Rd1 {[%emt 0:00:25]} Nf4 {[%emt 0:00:32]} 39. Kh2 {[%emt 0:00:23]} h5 {[%emt 0:00:26]} 40. Be5 {[%emt 0:00:00]} g5 {[%emt 0:00:00]} 41. Bxf4 {[%emt 0:01:50]} 1-0

[Event "EYCC Girls-U14 2019"]
[Site "Bratislava"]
[Date "2019.08.04"]
[Round "3.14"]
[White "Nagyova, Daniela"]
[Black "Hakobyan, Astghik"]
[Result "0-1"]
[ECO "C19"]
[WhiteElo "1316"]
[BlackElo "1863"]
[Annotator "NA"]
[PlyCount "62"]
[EventDate "2019.08.02"]
[EventType "swiss"]
[EventCountry "SVK"]
[SourceTitle "playchess.com"]
[Source "ChessBase"]
[SourceQuality "1"]
[TimeControl "40/5400+30:1800+30"]

1. e4 {[%emt 0:00:00]} e6 {[%emt 0:00:00]} 2. d4 {[%emt 0:00:00]} d5 {[%emt 0:00:00]} 3. Nc3 {[%emt 0:00:07]} Bb4 {[%emt 0:00:00]} 4. e5 {[%emt 0:00:37]} c5 {[%emt 0:00:00]} 5. a3 {[%emt 0:00:45]} Bxc3+ {[%emt 0:00:06]} 6. bxc3 {[%emt 0:00:09]} Ne7 {[%emt 0:00:02]} 7. Nf3 {[%emt 0:00:47]} Qc7 {[%emt 0:00:27]} 8. a4 {[%emt 0:02:10]} Bd7 {[%emt 0:03:23]} 9. Ba3 {[%emt 0:09:10]} cxd4 {[%emt 0:01:24]} 10. Qxd4 {[%emt 0:05:08]} Nbc6 {[%emt 0:12:33]} 11. Qe3 {[%emt 0:04:24]} Nf5 {[%emt 0:00:53]} 12. Qf4 {[%emt 0:03:48]} Ncd4 {[%emt 0:02:22]} 13. Kd2 {[%emt 0:04:53]} Rc8 {[%emt 0:04:06]} 14. Bb2 {[%emt 0:04:26]} Nxf3+ {[%emt 0:01:19]} 15. gxf3 {[%emt 0:00:41]} Qb6 {[%emt 0:00:48]} 16. Kc1 {[%emt 0:02:49]} Qxf2 {[%emt 0:09:01]} 17. Kb1 {[%emt 0:05:38]} d4 {[%emt 0:07:30]} 18. c4 {[%emt 0:02:28]} Qe1+ {[%emt 0:07:54]} 19. Ka2 {[%emt 0:00:20]} Qb4 {[%emt 0:01:12]} 20. Bd3 {[%emt 0:02:51]} Bxa4 {[%emt 0:04:08]} 21. Ba3 {[%emt 0:04:02]} Qc3 {[%emt 0:02:24]} 22. Rac1 {[%emt 0:01:26]} Rc6 {[%emt 0:16:50]} 23. Bxf5 {[%emt 0:04:30]} Qxc4+ {[%emt 0:01:28]} 24. Ka1 {[%emt 0:03:54]} Qc3+ {[%emt 0:08:17]} 25. Ka2 {[%emt 0:03:45]} Bb5 {[%emt 0:02:30]} 26. Bd3 {[%emt 0:02:26]} Bc4+ {[%emt 0:00:13]} 27. Bxc4 {[%emt 0:00:21]} Qxc4+ {[%emt 0:00:01]} 28. Ka1 {[%emt 0:02:33]} Qc3+ {[%emt 0:00:37]} 29. Ka2 {[%emt 0:00:07]} Ra6 {[%emt 0:00:04]} 30. Kb1 {[%emt 0:01:09]} Rxa3 {[%emt 0:00:09]} 31. Rce1 {[%emt 0:00:25]} Ra1# {[%emt 0:00:07]} 0-1

[Event "EYCC Girls-U14 2019"]
[Site "Bratislava"]
[Date "2019.08.04"]
[Round "3.15"]
[White "Zeliantsova, Kseniya"]
[Black "Barwinska, Ewa"]
[Result "1-0"]
[ECO "B51"]
[WhiteElo "1907"]
[BlackElo "1758"]
[Annotator "NA"]
[PlyCount "75"]
[EventDate "2019.08.02"]
[EventType "swiss"]
[EventCountry "SVK"]
[SourceTitle "playchess.com"]
[Source "ChessBase"]
[SourceQuality "1"]
[TimeControl "40/5400+30:1800+30"]

1. e4 {[%emt 0:00:00]} c5 {[%emt 0:00:00]} 2. Nf3 {[%emt 0:00:00]} d6 {[%emt 0:00:00]} 3. Bb5+ {[%emt 0:00:00]} Nd7 {[%emt 0:00:16]} 4. c3 {[%emt 0:00:00]} Ngf6 {[%emt 0:01:41]} 5. Qe2 {[%emt 0:00:00]} a6 {[%emt 0:01:53]} 6. Ba4 {[%emt 0:00:10]} b5 {[%emt 0:01:15]} 7. Bc2 {[%emt 0:00:12]} Bb7 {[%emt 0:03:10]} 8. O-O {[%emt 0:03:08]} Qc7 {[%emt 0:06:04]} 9. d4 {[%emt 0:06:26]} cxd4 {[%emt 0:00:27]} 10. cxd4 {[%emt 0:02:11]} e5 {[%emt 0:04:03]} 11. Nc3 {[%emt 0:06:49]} Rc8 {[%emt 0:03:09]} 12. Bb3 {[%emt 0:04:34]} Be7 {[%emt 0:06:42]} 13. Bg5 {[%emt 0:07:25]} O-O {[%emt 0:08:35]} 14. Rac1 {[%emt 0:03:28]} Qb6 {[%emt 0:02:41]} 15. Rfd1 {[%emt 0:04:03]} h6 {[%emt 0:05:22]} 16. Bh4 {[%emt 0:21:24]} Rfd8 {[%emt 0:06:26]} 17. Bg3 {[%emt 0:15:59]} Nh5 {[%emt 0:07:48]} 18. dxe5 {[%emt 0:08:12]} Nxg3 {[%emt 0:01:11]} 19. hxg3 {[%emt 0:00:03]} Nxe5 {[%emt 0:01:53]} 20. Nd4 {[%emt 0:01:58]} Bf6 {[%emt 0:08:50]} 21. Nf5 {[%emt 0:01:41]} Bg5 {[%emt 0:06:01]} 22. Rb1 {[%emt 0:01:47]} Nc4 {[%emt 0:02:21]} 23. Kh1 {[%emt 0:01:00]} Kh7 {[%emt 0:08:54]} 24. f4 {[%emt 0:03:26]} Bf6 {[%emt 0:00:12]} 25. Qh5 {[%emt 0:04:35]} Bxc3 {[%emt 0:02:03]} 26. bxc3 {[%emt 0:00:07]} Bxe4 {[%emt 0:02:03]} 27. Nxh6 {[%emt 0:03:38]} Bg6 {[%emt 0:01:45]} 28. Qh3 {[%emt 0:00:01]} gxh6 {[%emt 0:00:45]} 29. f5 {[%emt 0:00:00]} Qc5 {[%emt 0:02:16]} 30. fxg6+ {[%emt 0:00:04]} fxg6 {[%emt 0:00:10]} 31. Rd4 {[%emt 0:00:30]} d5 {[%emt 0:02:33]} 32. Rf1 {[%emt 0:02:01]} Rc7 {[%emt 0:01:46]} 33. Bc2 {[%emt 0:00:28]} Rf8 {[%emt 0:01:04]} 34. Re1 {[%emt 0:01:03]} Rcf7 {[%emt 0:01:53]} 35. Kh2 {[%emt 0:00:19]} Qc8 {[%emt 0:01:05]} 36. Qh5 {[%emt 0:00:31]} Qc6 {[%emt 0:01:04]} 37. Rh4 {[%emt 0:00:09]} Rf6 {[%emt 0:00:37]} 38. Qxh6+ {[%emt 0:00:05]} 1-0

[Event "EYCC Girls-U14 2019"]
[Site "Bratislava"]
[Date "2019.08.04"]
[Round "3.16"]
[White "Karavitaki, Evaggelia"]
[Black "Mironenko, Galina"]
[Result "1/2-1/2"]
[ECO "B31"]
[WhiteElo "1681"]
[BlackElo "1995"]
[Annotator "NA"]
[PlyCount "100"]
[EventDate "2019.08.02"]
[EventType "swiss"]
[EventCountry "SVK"]
[SourceTitle "playchess.com"]
[Source "ChessBase"]
[SourceQuality "1"]
[TimeControl "40/5400+30:1800+30"]

1. e4 {[%emt 0:00:00]} c5 {[%emt 0:00:00]} 2. Nf3 {[%emt 0:00:00]} Nc6 {[%emt 0:00:00]} 3. Bb5 {[%emt 0:00:03]} g6 {[%emt 0:00:00]} 4. O-O {[%emt 0:00:12]} Bg7 {[%emt 0:00:00]} 5. Re1 {[%emt 0:00:15]} e5 {[%emt 0:00:28]} 6. Bxc6 {[%emt 0:01:09]} dxc6 {[%emt 0:00:06]} 7. d3 {[%emt 0:00:17]} Qe7 {[%emt 0:00:35]} 8. Nbd2 {[%emt 0:02:53]} Nh6 {[%emt 0:01:48]} 9. Nc4 {[%emt 0:04:37]} f6 {[%emt 0:00:56]} 10. h3 {[%emt 0:11:07]} O-O {[%emt 0:01:49]} 11. Be3 {[%emt 0:04:50]} Nf7 {[%emt 0:03:08]} 12. Qe2 {[%emt 0:22:42]} Be6 {[%emt 0:03:35]} 13. Rad1 {[%emt 0:03:35]} Rad8 {[%emt 0:03:49]} 14. c3 {[%emt 0:05:20]} Rfe8 {[%emt 0:14:14]} 15. d4 {[%emt 0:07:42]} cxd4 {[%emt 0:08:01]} 16. cxd4 {[%emt 0:00:25]} Qb4 {[%emt 0:01:37]} 17. b3 {[%emt 0:04:22]} exd4 {[%emt 0:05:33]} 18. Bxd4 {[%emt 0:02:20]} b5 {[%emt 0:04:04]} 19. Nb2 {[%emt 0:02:10]} Qe7 {[%emt 0:05:05]} 20. Qc2 {[%emt 0:08:45]} Rc8 {[%emt 0:07:11]} 21. Nd3 {[%emt 0:01:53]} g5 {[%emt 0:04:51]} 22. Bc5 {[%emt 0:10:20]} Qc7 {[%emt 0:02:23]} 23. Nd4 {[%emt 0:00:33]} a5 {[%emt 0:04:49]} 24. Nf5 {[%emt 0:02:18]} h5 {[%emt 0:06:11]} 25. Qb2 {[%emt 0:03:02]} Bxf5 {[%emt 0:02:32]} 26. exf5 {[%emt 0:00:02]} Nh6 {[%emt 0:00:20]} 27. Bd4 {[%emt 0:01:27]} Qf7 {[%emt 0:01:07]} 28. Nc5 {[%emt 0:00:57]} Nxf5 {[%emt 0:01:55]} 29. Ne4 {[%emt 0:00:12]} Re6 {[%emt 0:04:18]} 30. Nc5 {[%emt 0:00:57]} Rxe1+ {[%emt 0:04:02]} 31. Rxe1 {[%emt 0:00:02]} Rd8 {[%emt 0:00:52]} 32. Bc3 {[%emt 0:00:59]} b4 {[%emt 0:01:55]} 33. Bd2 {[%emt 0:00:08]} Qd5 {[%emt 0:02:39]} 34. Ne4 {[%emt 0:00:16]} Nd4 {[%emt 0:01:22]} 35. Kh1 {[%emt 0:01:06]} f5 {[%emt 0:03:20]} 36. Nxg5 {[%emt 0:00:30]} Nf3 {[%emt 0:01:14]} 37. Qc2 {[%emt 0:00:30]} Nxe1 {[%emt 0:01:02]} 38. Bxe1 {[%emt 0:00:13]} Qd1 {[%emt 0:00:37]} 39. Qc4+ {[%emt 0:00:47]} Qd5 {[%emt 0:00:33]} 40. Qe2 {[%emt 0:00:00]} h4 {[%emt 0:00:00]} 41. Qh5 {[%emt 0:03:10]} Qd7 {[%emt 0:14:26]} 42. Qh7+ {[%emt 0:05:15]} Kf8 {[%emt 0:00:07]} 43. Qg6 {[%emt 0:00:36]} Qe7 {[%emt 0:07:40]} 44. Ne6+ {[%emt 0:05:26]} Kg8 {[%emt 0:00:29]} 45. Nxd8 {[%emt 0:00:56]} Qxe1+ {[%emt 0:01:54]} 46. Kh2 {[%emt 0:00:11]} Qe5+ {[%emt 0:00:21]} 47. Kg1 {[%emt 0:01:17]} Qa1+ {[%emt 0:00:47]} 48. Kh2 {[%emt 0:00:14]} Qe5+ {[%emt 0:00:58]} 49. Kg1 {[%emt 0:00:08]} Qe1+ {[%emt 0:00:08]} 50. Kh2 {[%emt 0:00:07]} Qe5+ {[%emt 0:01:17]} 1/2-1/2

[Event "EYCC Girls-U14 2019"]
[Site "Bratislava"]
[Date "2019.08.04"]
[Round "3.17"]
[White "Eraslan, Yagmur"]
[Black "Reuter, Elisa"]
[Result "1-0"]
[ECO "B30"]
[WhiteElo "1651"]
[BlackElo "1930"]
[Annotator "NA"]
[PlyCount "147"]
[EventDate "2019.08.02"]
[EventType "swiss"]
[EventCountry "SVK"]
[SourceTitle "playchess.com"]
[Source "ChessBase"]
[SourceQuality "1"]
[TimeControl "40/5400+30:1800+30"]

1. e4 {[%emt 0:00:00]} c5 {[%emt 0:00:00]} 2. Nf3 {[%emt 0:00:00]} Nc6 {[%emt 0:00:00]} 3. Bb5 {[%emt 0:00:00]} d6 {[%emt 0:00:00]} 4. O-O {[%emt 0:00:12]} e5 {[%emt 0:00:00]} 5. c3 {[%emt 0:01:33]} Bg4 {[%emt 0:11:54]} 6. h3 {[%emt 0:06:03]} Bh5 {[%emt 0:05:38]} 7. Re1 {[%emt 0:04:33]} Be7 {[%emt 0:01:41]} 8. g4 {[%emt 0:11:57]} Bg6 {[%emt 0:00:12]} 9. d4 {[%emt 0:00:20]} Qc7 {[%emt 0:19:43]} 10. d5 {[%emt 0:06:11]} a6 {[%emt 0:00:10]} 11. Qa4 {[%emt 0:00:13]} Rc8 {[%emt 0:00:39]} 12. Bxc6+ {[%emt 0:00:31]} bxc6 {[%emt 0:00:08]} 13. Qxa6 {[%emt 0:00:31]} cxd5 {[%emt 0:00:30]} 14. Qb5+ {[%emt 0:01:53]} Qd7 {[%emt 0:04:45]} 15. Qxd7+ {[%emt 0:00:26]} Kxd7 {[%emt 0:00:03]} 16. exd5 {[%emt 0:00:24]} Nf6 {[%emt 0:03:05]} 17. c4 {[%emt 0:04:13]} Ne8 {[%emt 0:00:55]} 18. Nc3 {[%emt 0:05:13]} Nc7 {[%emt 0:00:37]} 19. a3 {[%emt 0:20:36]} Rb8 {[%emt 0:01:06]} 20. Ne4 {[%emt 0:09:54]} f5 {[%emt 0:02:01]} 21. Ng3 {[%emt 0:01:55]} fxg4 {[%emt 0:07:46]} 22. hxg4 {[%emt 0:00:14]} Rhf8 {[%emt 0:01:20]} 23. Kg2 {[%emt 0:03:35]} Bd3 {[%emt 0:06:18]} 24. Ne4 {[%emt 0:11:07]} Bxc4 {[%emt 0:01:50]} 25. Nxc5+ {[%emt 0:00:44]} Ke8 {[%emt 0:01:14]} 26. Ne4 {[%emt 0:01:40]} Bxd5 {[%emt 0:00:31]} 27. b4 {[%emt 0:02:22]} Kd7 {[%emt 0:03:35]} 28. Bd2 {[%emt 0:01:34]} Ne6 {[%emt 0:04:00]} 29. Kg3 {[%emt 0:02:26]} Nf4 {[%emt 0:02:37]} 30. Re3 {[%emt 0:02:11]} h5 {[%emt 0:04:52]} 31. Nc3 {[%emt 0:01:15]} hxg4 {[%emt 0:05:11]} 32. Nxe5+ {[%emt 0:00:49]} dxe5 {[%emt 0:00:09]} 33. Rxe5 {[%emt 0:00:05]} Bd6 {[%emt 0:00:19]} 34. Bxf4 {[%emt 0:00:59]} Bxe5 {[%emt 0:00:24]} 35. Bxe5 {[%emt 0:00:06]} Rbe8 {[%emt 0:01:15]} 36. Bxg7 {[%emt 0:00:38]} Rf5 {[%emt 0:02:54]} 37. Rd1 {[%emt 0:00:49]} Ke6 {[%emt 0:02:12]} 38. Nxd5 {[%emt 0:00:45]} Rxd5 {[%emt 0:00:05]} 39. Re1+ {[%emt 0:00:34]} Kd7 {[%emt 0:00:37]} 40. Rxe8 {[%emt 0:00:00]} Kxe8 {[%emt 0:00:00]} 41. Kxg4 {[%emt 0:03:26]} Rd3 {[%emt 0:01:54]} 42. f4 {[%emt 0:00:33]} Rxa3 {[%emt 0:00:20]} 43. Bd4 {[%emt 0:00:20]} Rb3 {[%emt 0:00:20]} 44. Bc5 {[%emt 0:00:07]} Rc3 {[%emt 0:14:30]} 45. Kf5 {[%emt 0:02:40]} Rc4 {[%emt 0:01:36]} 46. Ke5 {[%emt 0:01:25]} Kd8 {[%emt 0:00:39]} 47. f5 {[%emt 0:01:00]} Ke8 {[%emt 0:00:08]} 48. Kd5 {[%emt 0:04:01]} Rf4 {[%emt 0:00:52]} 49. Ke6 {[%emt 0:00:41]} Re4+ {[%emt 0:00:10]} 50. Kf6 {[%emt 0:01:26]} Rc4 {[%emt 0:00:24]} 51. Ke5 {[%emt 0:02:52]} Kd8 {[%emt 0:02:42]} 52. f6 {[%emt 0:00:53]} Ke8 {[%emt 0:00:05]} 53. Kd5 {[%emt 0:00:15]} Rf4 {[%emt 0:00:16]} 54. Be7 {[%emt 0:00:05]} Kf7 {[%emt 0:00:37]} 55. Kc5 {[%emt 0:00:08]} Rf1 {[%emt 0:00:52]} 56. b5 {[%emt 0:00:28]} Rc1+ {[%emt 0:00:06]} 57. Kb6 {[%emt 0:00:06]} Rb1 {[%emt 0:01:30]} 58. Ka6 {[%emt 0:00:15]} Ra1+ {[%emt 0:00:17]} 59. Kb7 {[%emt 0:00:14]} Rb1 {[%emt 0:01:05]} 60. b6 {[%emt 0:00:10]} Rc1 {[%emt 0:02:26]} 61. Kb8 {[%emt 0:01:50]} Rb1 {[%emt 0:00:05]} 62. b7 {[%emt 0:00:04]} Rd1 {[%emt 0:00:49]} 63. Kc7 {[%emt 0:02:06]} Rc1+ {[%emt 0:00:40]} 64. Kd6 {[%emt 0:01:53]} Rd1+ {[%emt 0:00:23]} 65. Kc6 {[%emt 0:00:06]} Rb1 {[%emt 0:00:28]} 66. Bd8 {[%emt 0:03:12]} Rc1+ {[%emt 0:00:10]} 67. Kb5 {[%emt 0:00:11]} Rb1+ {[%emt 0:00:14]} 68. Ka6 {[%emt 0:00:09]} Ra1+ {[%emt 0:02:31]} 69. Ba5 {[%emt 0:00:15]} Rb1 {[%emt 0:00:05]} 70. Bb6 {[%emt 0:00:30]} Ra1+ {[%emt 0:00:25]} 71. Kb5 {[%emt 0:00:06]} Rb1+ {[%emt 0:00:02]} 72. Kc5 {[%emt 0:00:11]} Rc1+ {[%emt 0:00:05]} 73. Kd4 {[%emt 0:00:09]} Rd1+ {[%emt 0:00:05]} 74. Kc3 {[%emt 0:00:08]} 1-0